Cogmind - Beta 17 @@@ ROGUE MODE // 2026.07.11 @ 19:08:45 Player: Great Hero J Result: Destroyed by D-53 Grenadier with Mini Grenade Launcher Performance ------------- Evolutions (0) 0 Regions Visited (2) 400 Robots Destroyed (32) 160 Value Destroyed (411) 411 Prototype IDs (3) 60 Alien Tech Used (0) 0 Bonus (0) 0 TOTAL SCORE: 1031 Bonus ------- None Cogmind --------- Core Integrity 0/250 Matter 287/300 Energy 250/250 System Corruption 2% Temperature Cool (0) Movement Core (250) Ox4 Location -10/Mines Parts ------- > --- POWER (1) -------- Ion Engine > --- PROPULSION (2) --- (None) > --- UTILITY (2) ------ Small Storage Unit Seismic Detector > --- WEAPON (2) ------- Small Laser Assault Rifle > --- INVENTORY (8) ---- Heat Sink Visual Processing Unit Signal Interpreter Transport Network Coupler Hacking Suite Datajack Mining Laser Explosive Trap Peak State ------------ > --- POWER ------------ Ion Engine > --- PROPULSION ------- Aluminum Leg Aluminum Leg > --- UTILITY ---------- Small Storage Unit Seismic Detector > --- WEAPON ----------- Medium Laser Small Laser > --- INVENTORY -------- Light Ion Engine Light Ion Engine Light Treads Light Treads Small Matter Pod Improved Terrain Scanner Assault Rifle Mining Laser [Rating: 8] Favorites ----------- Power Ion Engine Engine Ion Engine Propulsion Aluminum Leg Treads Light Treads Leg Aluminum Leg Utility Small Storage Unit Device Seismic Detector Storage Small Storage Unit Weapon Medium Laser Energy Gun Medium Laser Ballistic Gun Assault Rifle Build | -11 -10 -10 ------- Run | Yrd Mat Min Slots Evolved . | . . . Power . | . . . Propulsion . | . . . Utility . | . . . Weapon . | . . . Parts Attached 16 | 9 6 1 Power 3 | 2 1 . Engine 3 | 2 1 . Core . | . . . Reactor . | . . . Propulsion 5 | 2 3 . Treads 2 | . 2 . Leg 3 | 2 1 . Wheel . | . . . Hover . | . . . Flight . | . . . Utility 4 | 3 1 . Device 3 | 2 1 . Storage 1 | 1 . . Processor . | . . . Hackware . | . . . Protection . | . . . Artifact . | . . . Weapon 4 | 2 1 1 Energy Gun 3 | 2 . 1 Energy Cannon . | . . . Ballistic Gun 1 | . 1 . Ballistic Cannon . | . . . Launcher . | . . . Special Weapon . | . . . Impact Weapon . | . . . Slashing Weapon . | . . . Piercing Weapon . | . . . Special Melee Weapon . | . . . Unidentified Prototypes . | . . . Parts Lost 5 | . 2 3 Power 1 | . 1 . Propulsion 2 | . . 2 Utility . | . . . Weapon 2 | . 1 1 Highest Loss Streak 3 | . 2 3 To Critical Strikes 1 | . . 1 Average Backups 7 | 5 7 7 Power . | 1 . . Propulsion 1 | 1 1 . Utility 3 | 1 3 5 Weapon 1 | 1 1 1 Tool/Special . | . . . Unused Backups 10 | 1 2 7 Power 1 | . 1 . Propulsion . | . . . Utility 7 | 1 1 5 Weapon 1 | . . 1 Tool/Special 1 | . . 1 Average Slot Usage (%) 97 | . 99 94 Engine 13 | . 13 14 Treads 16 | . 12 23 Leg 10 | . 15 . Device 14 | . 14 14 Storage 14 | . 14 14 Energy Gun 22 | . 26 12 Ballistic Gun 5 | . 1 14 Peak Build Rating 8 | 8 8 8 Average Rating 7 | 6 7 7 On Entrance 5 | . 8 8 Avg Prop Armor Cover (%) . | . . . Naked Turns . | . . . Heaviest Build 15 | 14 15 15 Greatest Support 40 | 20 40 40 Greatest Overweight (x) 4 | 1 . 4 Average Overweight (x) . | . . . Largest Inventory Capacity 8 | 8 8 8 Average Capacity 7 | 7 8 8 Most Carried 8 | 8 8 8 Average Carried 7 | 5 7 7 Final Capacity 8 | 8 8 8 Final Carried 8 | 8 7 8 Class Distribution -------------------- 100% | Mutant Dominant Class ---------------- Mutant | -10/Materials Mutant | -10/Mines Resources | -11 -10 -10 ----------- Run | Yrd Mat Min Matter Collected 415 | 338 45 32 Remotely . | . . . Salvage Created 894 | 316 521 57 Parts 69 | 31 34 4 Haulers Intercepted 1 | . 1 . Recyclers Shooed 4 | 2 2 . Parts Field Recycled . | . . . Retrieved Matter . | . . . Parts Self-Destructed . | . . . Prevented . | . . . Parts Restored . | . . . Kills | -11 -10 -10 ------- Run | Yrd Mat Min Combat Hostiles Destroyed 9 | . 9 . Melee 1 | . 1 . Guns 8 | . 8 . Classes Destroyed 9 | 3 6 . Worker 5 | 2 2 1 Builder 1 | . 1 . Tunneler 9 | 9 . . Hauler 1 | . 1 . Recycler 2 | 1 1 . Operator 1 | . 1 . Watcher 3 | . 3 . Swarmer 3 | . 3 . Grunt 7 | . 6 1 Best Kill Streak 5 | 5 4 1 Combat Bots Only 4 | . 4 . Max Kills in Single Turn 1 | 1 1 1 Gunslinging . | . . . Exploded . | . . . Melee 1 | . 1 . Uniques/NPCs Destroyed . | . . . Combat | -11 -10 -10 -------- Run | Yrd Mat Min Hostile Shots Fired 108 | . 71 37 Missed 33 | . 21 12 Hits 75 | . 50 25 Projectile 75 | . 50 25 AOE 2 | . . 2 Critical Strikes 1 | . . 1 Damage Taken 1005 | . 591 414 Core 259 | . 150 109 Absorbed by Shields . | . . . Core Remaining (%) 100 | 100 . . Volleys Fired 104 | 27 72 5 Largest 2 | 2 2 2 Hottest 90 | 90 90 70 Shots Fired 201 | 54 137 10 Gun 201 | 54 137 10 Cannon . | . . . Launcher . | . . . Special . | . . . Kinetic 12 | . 6 6 Thermal 189 | 54 131 4 Explosive . | . . . Electromagnetic . | . . . Robot Hit Streak 12 | 9 12 5 Robot Miss Streak 7 | 4 7 3 Penetration Max . | . . . Secondary Targets 1 | . 1 . Max Gunslinging Chain 1 | . 1 . Shots Hit Robots 120 | 32 83 5 Core Hits 44 | 13 28 3 Critical Kills . | . . . Critical Parts Destroyed . | . . . Critical Strikes 4 | 2 2 . Burn 4 | 2 2 . Melee Attacks . | . . . Impact . | . . . Slashing . | . . . Piercing . | . . . Sneak Attacks . | . . . Combat Hostiles . | . . . Follow-up Attacks . | . . . Damage Inflicted 1481 | 375 1019 87 Guns 1470 | 375 1008 87 Cannons . | . . . Explosions . | . . . Melee . | . . . Ramming 11 | . 11 . Kinetic 97 | . 34 63 Thermal 1373 | 375 974 24 Explosive . | . . . Electromagnetic . | . . . Impact . | . . . Slashing . | . . . Piercing . | . . . Highest Corruption 2 | . 2 2 Average Corruption 2 | . 2 2 Corruption Purged . | . . . Corruption Blocked . | . . . Effects 7 | . 5 2 Matter Fused 2 | . 1 1 Heat Flow Errors 1 | . 1 . Energy Discharges 2 | . 2 . Misfires 1 | . . 1 Weapon Failures 1 | . 1 . Overload Shots . | . . . Overflow Damage . | . . . Projectiles . | . . . Explosions . | . . . Melee . | . . . Knockbacks . | . . . Impact . | . . . Kinetic . | . . . Secondary . | . . . Self-Inflicted Damage . | . . . Shots . | . . . Rammed 3 | . 3 . Targets Rammed 4 | . 4 . Kicked . | . . . Crushed 1 | . 1 . Highest Temperature 387 | 150 387 18 Average Temperature 86 | 43 105 9 Received Heat Transfer 255 | . 255 . Effects 7 | . 7 . Energy Bleed 5 | . 5 . Interference 2 | . 2 . Siege Activations . | . . . Martial Activations . | . . . Shielding Activations . | . . . Robots Disrupted . | . . . Combat Hostiles . | . . . Robots Corrupted . | . . . Combat Hostiles . | . . . Parts Fried . | . . . Impact Corruptions . | . . . Robots Melted . | . . . Combat Hostiles . | . . . Parts Melted 7 | 2 5 . Heat Transferred 3965 | 1140 2751 74 Parts Sabotaged . | . . . Parts Stolen . | . . . Parts Stripped . | . . . Power Chain Reactions . | . . . Alert | -11 -10 -10 ------- Run | Yrd Mat Min Maximum Alert Level . | . . . Low Security (%) 100 | 100 100 100 Level 1 . | . . . Level 2 . | . . . Level 3 . | . . . Level 4 . | . . . Level 5 . | . . . High Security . | . . . Max Security . | . . . Peak Influence 100 | 10 100 7 Initial 7 | . . 7 Average 22 | 2 41 . Influence Increases 335 | 60 269 6 Destroy 0b10 Robot/C 180 | . 180 . Destroy 0b10 Robot/NC 110 | 60 45 5 Destroy Leader 38 | . 38 . Allied During Kill 1 | . . 1 Successful Hack 5 | . 5 . Destroy Structure 1 | . 1 . Influence Decreases 335 | 60 250 25 Entered New Map 12 | . . 12 Time Decay 303 | 60 230 13 Lost Part 20 | . 20 . Squads Dispatched . | . . . Investigation . | . . . Extermination . | . . . Reinforcement . | . . . Assault . | . . . Garrison . | . . . Intercept . | . . . Searches Triggered . | . . . Construction Impeded . | . . . Haulers Reinforced . | . . . Active Scanning Responses . | . . . Cargo Convoy Interrupts . | . . . Stealth | -11 -10 -10 --------- Run | Yrd Mat Min Distress Signals 3 | . 3 . Communications Jammed . | . . . Distress Signals . | . . . Times Spotted 29 | . 18 11 Peak Tracking Total 9 | . 6 9 Tactical Retreats . | . . . Traps | -11 -10 -10 ------- Run | Yrd Mat Min Traps Triggered 1 | . 1 . Indirectly . | . . . Trap Hack Attempts . | . . . Triggered . | . . . Disarmed . | . . . Reprogrammed . | . . . Reused . | . . . Traps Extracted . | . . . Installed . | . . . Triggered . | . . . Most Traps Carried 1 | . . 1 Machines | -11 -10 -10 ---------- Run | Yrd Mat Min Machines Disabled . | . . . Max in Single Turn . | . . . Machines Repaired . | . . . Machines Dismantled . | . . . Machines Sabotaged . | . . . Overloaded Fab Kills . | . . . Hacking | -11 -10 -10 --------- Run | Yrd Mat Min Machines Accessed 6 | . 6 . Terminals 5 | . 5 . Fabricators . | . . . Repair Stations . | . . . Recycling Units 1 | . 1 . Scanalyzers . | . . . Garrison Access . | . . . Total Hacks 12 | . 12 . Successful 7 | . 7 . Failed 5 | . 5 . Catastrophic . | . . . Database Lockouts . | . . . Manual . | . . . Terminals 10 | . 10 . Fabricators . | . . . Repair Stations . | . . . Recycling Units 2 | . 2 . Scanalyzers . | . . . Garrison Access . | . . . Terminal Hacks 6 | . 6 . Record 2 | . 2 . Prototype ID Bank 2 | . 2 . Terminal Index 1 | . 1 . Dispatch Records 1 | . 1 . Fabricator Hacks . | . . . Repair Station Hacks . | . . . Recycling Unit Hacks 1 | . 1 . Report Inventory 1 | . 1 . Scanalyzer . | . . . Garrison Access Hacks . | . . . Unauthorized Hacks . | . . . Terminals . | . . . Fabricators . | . . . Repair Stations . | . . . Recycling Units . | . . . Scanalyzers . | . . . Garrison Access . | . . . Data Cores Recovered 1 | . 1 . Used 1 | . 1 . Hacking Detections 4 | . 4 . Full Trace Events . | . . . Feedback Events . | . . . Feedback Blocked . | . . . Robot Schematics Acquired . | . . . Robots Built . | . . . Authchips . | . . . Time . | . . . Total Robot Build Rating . | . . . Part Schematics Acquired . | . . . Parts Built . | . . . Authchips . | . . . Time . | . . . Total Part Build Rating . | . . . Part Studies Acquired . | . . . Parts Repaired . | . . . Time . | . . . Parts Recycled . | . . . Recycled Matter . | . . . Retrieved Matter . | . . . Retrieved Components . | . . . Parts Scanalyzed . | . . . Part Schematics Acquired . | . . . Parts Damaged . | . . . Bothacking | -11 -10 -10 ------------ Run | Yrd Mat Min Used RIF Installer . | . . . Robots Hacked . | . . . Non-combat . | . . . Combat . | . . . Robot Hacks Applied . | . . . Relay Couplers Released . | . . . Fabnet Peak Effective % . | . . . Robots Rewired . | . . . Allies Hacked . | . . . Hacks Repelled . | . . . Allies | -11 -10 -10 -------- Run | Yrd Mat Min Total Allies 5 | . . 5 Largest Group 5 | . . 5 Highest-Rated Group 90 | . . 90 Highest-Rated Ally 31 | . . 31 Total Orders 5 | . . 5 GUARD 2 | . . 2 AID 3 | . . 3 Ally Attacks 36 | . . 36 Total Damage 469 | . . 469 Kills 10 | . . 10 Allies Corrupted . | . . . Allies Melted . | . . . Intel | -11 -10 -10 ------- Run | Yrd Mat Min Active Infowar (turns) 1075 | 244 568 263 Seismic 1075 | 244 568 263 Robot Analysis Total . | . . . Derelict Logs Recovered 1 | . . 1 Drone Launches . | . . . Drone Recoveries . | . . . Exploration | -11 -10 -10 ------------- Run | Yrd Mat Min Turns Passed 1151 | 297 591 263 Spaces Moved 562 | 164 251 147 Core 19 | 5 . 14 Treads 248 | . 115 133 Legs 295 | 159 136 . Wheels . | . . . Hover . | . . . Flight . | . . . Fastest Speed 50 | 50 120 160 Average Speed 140 | 118 138 168 Slowest Speed 250 | 120 160 250 Overloaded Moves . | . . . Propulsion Burnouts . | . . . Robots Hopped . | . . . Potential Cave-ins . | . . . Cave-ins Triggered . | . . . Exploration Rate (%) 27 | 5 40 36 Regions Visited 2 Branch Regions 1 Pre-discovered Areas 1 | . . 1 Known Exits Taken . | . . . Unknown Exits Taken 2 | 1 1 . Scrap Searched . | . . . Spaces Dug . | . . . Terrain Destroyed . | . . . Melee . | . . . Projectile . | . . . AOE . | . . . Terrain Rammed . | . . . Walls Destroyed . | . . . Machines Disabled . | . . . Actions | -11 -10 -10 --------- Run | Yrd Mat Min Total 720 | 210 356 154 Wait 11 | . 11 . Move 560 | 163 250 147 Hop . | . . . Pick Up 16 | 9 6 1 Fast Attach 9 | 7 1 1 Attach 1 | . 1 . Detach . | . . . Swap 6 | 2 4 . Drop 9 | 2 7 . Fire 104 | 27 72 5 Melee . | . . . Ram . | . . . Kick . | . . . Crush 4 | . 4 . Escape Stasis . | . . . Rewire . | . . . Trap . | . . . Miscellaneous . | . . . Route ------- -11/Scrapyard -10/Materials (discovered 2 exits: [*Min x2]) -10/Mines History --------- Turn | Location | Event 28 | -11/Scrapyard | Discovered new exit (range 15) 298 | -11/Scrapyard | Entered Materials 306 | -10/Materials | Build established: Mutant 565 | -10/Materials | Discovered new exit (range 7) 766 | -10/Materials | Discovered new exit (range 8) 828 | -10/Materials | Core integrity fell below 50% 889 | -10/Materials | Entered Mines 893 | -10/Mines | Assisted by bots powering up and referring to "LRC-V3" 957 | -10/Mines | Found a hidden stash of uninstalled traps 974 | -10/Mines | Learned location of Mines (-9) 1069 | -10/Mines | Assembled infested the area 1123 | -10/Mines | Core integrity fell below 20% 1144 | -10/Mines | Lost 3 parts (2n1w) 1152 | -10/Mines | Destroyed by D-53 Grenadier with Mini Grenade Launcher Last Messages --------------- 01104_ as-75527 destroyed. 01105_ Med. Laser destroyed. 01107_ Destroyed Asb. Hover Unit. 01107_ as-99671 suffers critical hit (Burn). 01107_ as-99671 destroyed. 01108_ as-19909 destroyed. 01112_ Lgt. Treads destroyed. 01113_ Trooper 1a knocked back. 01113_ Critical hit (Destroy). 01113_ Lgt. Treads destroyed. 01115_ as-68160 destroyed. 01115_ Destroyed Asb. F-torch. 01116_ as-38767 destroyed. 01120_ as-64981 destroyed. 01121_ as-24581 destroyed. 01121_ as-19639 destroyed. 01123_ as-81831 destroyed. 01129_ Acquired 6 matter. 01139_ Acquired Sml. Laser. 01150_ Trooper 1b destroyed. Map ----- +----------------------------------------------------+ | ######?????????????????????????????????????????? | | #?????????????????????????????????????????? | | #?????????????????????????????????????????? | | #### #?????????????????????????????????????????? | | ##??# #?????????????????????????????????????????? | | ????# #?????????????????????????????????????????? | | ???## #?????????????????????????????????????????? | | ??## ###???????????????????????????????????????? | | ### ##??????????????????????????????????????? | | # ####???????????????????????????????????? | | #???????????????????????????????????? | | #?####?????????????????????????????? | | ## #?# ?????????????????????????????? | | ## ##?# #?# #?????????????????????????????? | | #######???# ##?# #?????????????????????????????? | | #??????????###??# #?????????????????????????????? | | ????????????????# #?####????????????????????????? | | ????????????????# ### ##???????????????????????? | | ????????????????# ## #???????????????????????? | | ################# ## ##??????????????????????? | | # #??????????????????????? | | #??????????????????????? | | ############ ## %*% ###?????????????????????? | | #??????????# ### % g# #?????????????????????? | | ???????????# #?# g #?????????????????????? | | ???######### #?## %=%@ #?????????????????????? | | ???# #??# #?????????????????????? | | ???# #########??## % % ????????????????????? | | ?????#???????????### d ???????????????????? | | ???? #?????????????## % ?????????????????? | | ???# #??????????????## d ????????????????? | | ??# ##??????????????## ???????????????? | | ?# #???????????????# % #??????????????? | | # #???????????????# ####??????????????? | | #??????????????? < #?????????????????? | | #??????????????? ##?????????????????? | | # #??????????????? ###??????????????????? | | ? #####?????????????? ##????????????????????? | | ? #?????????????????? #?????????????????????? | | ? #?????????????????? ??????????????????????? | | # #???????????????????? ??????????????????????? | | ##?####????????????????????????????????????????? | | ## ##???????????????????????????????????????? | | ##??????????????????????????????????????? | | #??????????????????????????????????????? | | #####??????????????????????????????????????? | | ##??????????????????????????????????????????? | | ##???????????????????????????????????????????? | | #????????????????????????????????????????????? | | #????????????????????????????????????????????? | +----------------------------------------------------+ Best States ------------- Heat Dissipation 25 Energy Generation 10 Energy Capacity 250 Matter Stores 300 Matter Capacity 300 Sight Range 16 Terrain Scan Density 10 Evasion (%) 55 Recoil Reduction 2 Item Schematics ----------------- None Robot Schematics ------------------ None Fabricated ------------ Nothing Repaired ---------- Nothing Studied --------- None Alien Tech Used ----------------- None Achievements -------------- The More The Merrier Challenges ------------ None Game ------ Seed BurstHardlightPlatform Manual? 0 Play Time 00:19:16 Cumulative 32.0 hours Start 2026.07.11 @ 18:49:43 End 2026.07.11 @ 19:08:45 Sessions 1 Manual Loads 0 Difficulty Rogue Special Mode None Game No. 8 Rogue 8 Adventurer 0 Explorer 0 Win Type - Total 0 Types 0/0/0/0/0/0/0/0/0/0 Lore% 13 Gallery% 20 Achievement% 18 Wizard Run 0 Options --------- Layout 0 ASCII 0 Keyboard 0 Movement Mouse Keybinds 0 Fullscreen 1 Font 20/SmallcapsGlow Map View 66x50 Zoom Use 0% Tactical HUD 1 Map Filters NONE Filters NONE Steam 1 RUN: b047d004-e4fb-41ff-813c-cff419e253ce